[Event "*** Titled Tuesday Blitz"]
[Site "Chess.com"]
[Date "2019.05.07"]
[Round "10"]
[White "saraswathii"]
[Black "mikhaillushenkov"]
[Result "0-1"]
[WhiteElo "2297"]
[BlackElo "2745"]
[TimeControl "180+2"]
[EndTime "15:21:52 PDT"]
[Termination "mikhaillushenkov won by resignation"]

1. d4 {[%clk 0:03:01.9]} 1... Nf6 {[%clk 0:02:59.3]} 2. Bf4 {[%clk 0:03:02.7]}
2... d5 {[%clk 0:02:59.3]} 3. e3 {[%clk 0:03:03.9]} 3... e6 {[%clk 0:02:56]} 4.
Nf3 {[%clk 0:03:04.7]} 4... c5 {[%clk 0:02:55.4]} 5. c3 {[%clk 0:03:05.1]} 5...
Nc6 {[%clk 0:02:56.4]} 6. Bd3 {[%clk 0:03:04.9]} 6... Bd6 {[%clk 0:02:57.4]} 7.
Bg3 {[%clk 0:03:05.2]} 7... O-O {[%clk 0:02:56.6]} 8. Nbd2 {[%clk 0:03:05.9]}
8... Qe7 {[%clk 0:02:54.5]} 9. Qc2 {[%clk 0:03:05.3]} 9... e5 {[%clk 0:02:54.4]}
10. dxe5 {[%clk 0:03:04.7]} 10... Nxe5 {[%clk 0:02:56.3]} 11. Nxe5 {[%clk
0:03:04.4]} 11... Bxe5 {[%clk 0:02:57.7]} 12. Nf3 {[%clk 0:03:03.8]} 12... Bc7
{[%clk 0:02:45.5]} 13. Bh4 {[%clk 0:03:00.2]} 13... h6 {[%clk 0:02:44.5]} 14.
O-O {[%clk 0:03:00.4]} 14... Bg4 {[%clk 0:02:42.3]} 15. Nd2 {[%clk 0:02:55.7]}
15... Rfe8 {[%clk 0:02:31.2]} 16. Rae1 {[%clk 0:02:46.8]} 16... c4 {[%clk
0:02:22.4]} 17. Bf5 {[%clk 0:02:42.1]} 17... Qe5 {[%clk 0:02:12.7]} 18. Bg3
{[%clk 0:02:30.2]} 18... Qxf5 {[%clk 0:02:13.8]} 19. Qxf5 {[%clk 0:02:19.1]}
19... Bxf5 {[%clk 0:02:15.7]} 20. Bxc7 {[%clk 0:02:20.3]} 20... Bd3 {[%clk
0:02:17]} 21. Nf3 {[%clk 0:02:14.7]} 21... Ne4 {[%clk 0:02:17.3]} 22. Rd1 {[%clk
0:02:12]} 22... Bxf1 {[%clk 0:02:14.9]} 23. Kxf1 {[%clk 0:02:13.9]} 23... Rac8
{[%clk 0:02:14.3]} 24. Be5 {[%clk 0:02:06.4]} 24... Rcd8 {[%clk 0:02:12.2]} 25.
h4 {[%clk 0:01:52.8]} 25... h5 {[%clk 0:02:09.2]} 26. Bc7 {[%clk 0:01:51.4]}
26... Rd7 {[%clk 0:02:08.9]} 27. Bf4 {[%clk 0:01:52.8]} 27... f6 {[%clk
0:02:09.6]} 28. Nd4 {[%clk 0:01:48.1]} 28... Kf7 {[%clk 0:02:09.9]} 29. f3
{[%clk 0:01:32.7]} 29... Nc5 {[%clk 0:02:09.7]} 30. Nf5 {[%clk 0:01:32.5]} 30...
Re6 {[%clk 0:02:05.8]} 31. Nd4 {[%clk 0:01:13.3]} 31... Ra6 {[%clk 0:02:04.7]}
32. a3 {[%clk 0:01:10.5]} 32... Nd3 {[%clk 0:02:01.5]} 33. b3 {[%clk 0:01:11]}
33... Nxf4 {[%clk 0:02:01.2]} 34. exf4 {[%clk 0:01:10.8]} 34... Rxa3 {[%clk
0:02:02.4]} 0-1

[Event "*** Titled Tuesday Blitz"]
[Site "Chess.com"]
[Date "2019.05.07"]
[Round "10"]
[White "Vice64"]
[Black "Indianlad"]
[Result "0-1"]
[WhiteElo "2559"]
[BlackElo "2885"]
[TimeControl "180+2"]
[EndTime "15:22:11 PDT"]
[Termination "Indianlad won by resignation"]

1. e4 {[%clk 0:03:01.9]} 1... c5 {[%clk 0:03:00.6]} 2. Nf3 {[%clk 0:03:02.7]}
2... d6 {[%clk 0:03:02]} 3. d4 {[%clk 0:03:03.9]} 3... cxd4 {[%clk 0:03:03.9]}
4. Nxd4 {[%clk 0:03:05.5]} 4... Nf6 {[%clk 0:03:05.2]} 5. Nc3 {[%clk 0:03:06.9]}
5... a6 {[%clk 0:03:06.7]} 6. h3 {[%clk 0:03:07.6]} 6... e5 {[%clk 0:03:07.6]}
7. Nb3 {[%clk 0:03:08.8]} 7... b5 {[%clk 0:03:07.1]} 8. Bg5 {[%clk 0:03:03.9]}
8... Nbd7 {[%clk 0:03:07.1]} 9. Qe2 {[%clk 0:02:57]} 9... Be7 {[%clk 0:03:05.7]}
10. O-O-O {[%clk 0:02:47.7]} 10... b4 {[%clk 0:03:04.8]} 11. Bxf6 {[%clk
0:02:45.6]} 11... Nxf6 {[%clk 0:03:04.2]} 12. Nd5 {[%clk 0:02:42.8]} 12... Nxd5
{[%clk 0:03:05.6]} 13. Rxd5 {[%clk 0:02:41]} 13... Be6 {[%clk 0:03:04.5]} 14.
Rd1 {[%clk 0:02:40.1]} 14... Qc7 {[%clk 0:03:04.9]} 15. Kb1 {[%clk 0:02:39.1]}
15... O-O {[%clk 0:03:05.2]} 16. g3 {[%clk 0:02:34]} 16... a5 {[%clk 0:03:06.4]}
17. f4 {[%clk 0:02:34.4]} 17... a4 {[%clk 0:03:07.8]} 18. Nc1 {[%clk 0:02:35.4]}
18... b3 {[%clk 0:02:42.2]} 19. cxb3 {[%clk 0:02:34]} 19... axb3 {[%clk
0:02:39.3]} 20. a3 {[%clk 0:02:21]} 20... f5 {[%clk 0:02:36.3]} 21. g4 {[%clk
0:02:12.3]} 21... fxe4 {[%clk 0:02:17.7]} 22. f5 {[%clk 0:02:12.8]} 22... Bf7
{[%clk 0:02:18.9]} 23. Qxe4 {[%clk 0:02:05.6]} 23... d5 {[%clk 0:02:20.3]} 24.
Qd3 {[%clk 0:02:03.5]} 24... Bxa3 {[%clk 0:01:58.9]} 25. bxa3 {[%clk 0:01:50.2]}
25... Rxa3 {[%clk 0:01:58.9]} 26. Rh2 {[%clk 0:01:43.7]} 26... Rfa8 {[%clk
0:01:48]} 27. Nxb3 {[%clk 0:01:41.6]} 27... e4 {[%clk 0:01:49.1]} 28. Rc2 {[%clk
0:00:43.3]} 28... Qb6 {[%clk 0:01:43.3]} 29. Qb5 {[%clk 0:00:43.7]} 29... Rxb3+
{[%clk 0:01:44]} 0-1

[Event "*** Titled Tuesday Blitz"]
[Site "Chess.com"]
[Date "2019.05.07"]
[Round "10"]
[White "penguingm1"]
[Black "wonderfultime"]
[Result "1-0"]
[WhiteElo "2939"]
[BlackElo "2955"]
[TimeControl "180+2"]
[EndTime "15:22:33 PDT"]
[Termination "penguingm1 won by resignation"]

1. d4 {[%clk 0:03:01.9]} 1... d5 {[%clk 0:02:57.8]} 2. Bf4 {[%clk 0:03:02.7]}
2... Nf6 {[%clk 0:02:58.6]} 3. e3 {[%clk 0:03:04.1]} 3... e6 {[%clk 0:02:59.9]}
4. Nf3 {[%clk 0:03:05.4]} 4... Bd6 {[%clk 0:03:01.3]} 5. Nbd2 {[%clk 0:03:06.7]}
5... O-O {[%clk 0:03:02.2]} 6. Bd3 {[%clk 0:03:06.7]} 6... c5 {[%clk 0:03:03.5]}
7. c3 {[%clk 0:03:01.4]} 7... Qc7 {[%clk 0:03:01.3]} 8. Bxd6 {[%clk 0:02:57.9]}
8... Qxd6 {[%clk 0:03:03.2]} 9. Ne5 {[%clk 0:02:59.5]} 9... b6 {[%clk
0:02:42.7]} 10. Qe2 {[%clk 0:02:58.2]} 10... Bb7 {[%clk 0:02:40]} 11. O-O {[%clk
0:02:54.2]} 11... a5 {[%clk 0:02:29.4]} 12. f4 {[%clk 0:02:46.2]} 12... Ba6
{[%clk 0:02:27.8]} 13. Bxa6 {[%clk 0:02:43.6]} 13... Nxa6 {[%clk 0:02:29.7]} 14.
Rf3 {[%clk 0:02:44.6]} 14... Nc7 {[%clk 0:02:19.7]} 15. Rh3 {[%clk 0:02:43.6]}
15... g6 {[%clk 0:01:57.9]} 16. Qf2 {[%clk 0:02:37.1]} 16... Nce8 {[%clk
0:01:10.7]} 17. Qh4 {[%clk 0:02:16.1]} 17... Qd8 {[%clk 0:01:07.5]} 18. g4
{[%clk 0:02:05.2]} 18... h5 {[%clk 0:01:04]} 19. gxh5 {[%clk 0:01:28.3]} 19...
Nxh5 {[%clk 0:01:05.9]} 20. Qg4 {[%clk 0:01:29.2]} 20... Neg7 {[%clk 0:01:06.5]}
21. Kh1 {[%clk 0:01:28.7]} 21... Rc8 {[%clk 0:00:46.9]} 22. Rg1 {[%clk
0:01:28.7]} 22... Nf6 {[%clk 0:00:44.9]} 23. Qg5 {[%clk 0:01:21.5]} 23... Re8
{[%clk 0:00:22]} 24. Rh8+ {[%clk 0:01:12.8]} 1-0

[Event "*** Titled Tuesday Blitz"]
[Site "Chess.com"]
[Date "2019.05.07"]
[Round "10"]
[White "ENEASZ"]
[Black "OneTrickPony_82"]
[Result "1-0"]
[WhiteElo "2509"]
[BlackElo "2339"]
[TimeControl "180+2"]
[EndTime "15:22:44 PDT"]
[Termination "ENEASZ won by resignation"]

1. e4 {[%clk 0:03:01.9]} 1... e5 {[%clk 0:03:00.7]} 2. Nf3 {[%clk 0:03:02.7]}
2... Nc6 {[%clk 0:02:59.8]} 3. Bc4 {[%clk 0:03:03.5]} 3... Nf6 {[%clk
0:02:59.9]} 4. Ng5 {[%clk 0:03:04.2]} 4... d5 {[%clk 0:03:00.5]} 5. exd5 {[%clk
0:03:06.1]} 5... Na5 {[%clk 0:03:01.7]} 6. Bb5+ {[%clk 0:03:07.7]} 6... c6
{[%clk 0:03:03.1]} 7. dxc6 {[%clk 0:03:09.6]} 7... bxc6 {[%clk 0:03:04.5]} 8.
Be2 {[%clk 0:03:11.1]} 8... h6 {[%clk 0:03:05.2]} 9. Nf3 {[%clk 0:03:12.7]} 9...
e4 {[%clk 0:03:06.5]} 10. Ne5 {[%clk 0:03:14.3]} 10... Bd6 {[%clk 0:03:06.4]}
11. d4 {[%clk 0:03:14.9]} 11... exd3 {[%clk 0:03:07.6]} 12. Nxd3 {[%clk
0:03:15.4]} 12... O-O {[%clk 0:03:08.6]} 13. Bf4 {[%clk 0:03:16.1]} 13... Bxf4
{[%clk 0:02:51.7]} 14. Nxf4 {[%clk 0:03:18]} 14... Qb6 {[%clk 0:02:48.9]} 15.
Nd3 {[%clk 0:03:12.9]} 15... Bf5 {[%clk 0:02:45.4]} 16. O-O {[%clk 0:03:06.8]}
16... Rad8 {[%clk 0:02:32.8]} 17. Nc3 {[%clk 0:02:52.6]} 17... c5 {[%clk
0:02:08.2]} 18. Na4 {[%clk 0:02:35.6]} 18... Qc6 {[%clk 0:01:59.9]} 19. Naxc5
{[%clk 0:02:33.9]} 19... Nc4 {[%clk 0:01:59.3]} 20. Bf3 {[%clk 0:02:32.7]} 20...
Qc8 {[%clk 0:01:51.3]} 21. Qc1 {[%clk 0:02:28.5]} 21... Ne5 {[%clk 0:01:35.1]}
22. Nxe5 {[%clk 0:02:26.8]} 22... Qxc5 {[%clk 0:01:35.9]} 23. Nc6 {[%clk
0:02:08.7]} 23... Rc8 {[%clk 0:01:21.6]} 24. b4 {[%clk 0:01:54]} 24... Qd6
{[%clk 0:01:17.4]} 25. Rd1 {[%clk 0:01:49.6]} 25... Qc7 {[%clk 0:01:18.5]} 26.
b5 {[%clk 0:01:50.2]} 26... Bg4 {[%clk 0:01:14.8]} 27. Qe3 {[%clk 0:01:49]}
27... Rfe8 {[%clk 0:01:14.8]} 28. Qxa7 {[%clk 0:01:47.8]} 28... Qf4 {[%clk
0:01:11.3]} 29. Qd4 {[%clk 0:01:08.3]} 29... Qxd4 {[%clk 0:01:05.3]} 30. Rxd4
{[%clk 0:01:10.2]} 30... Bxf3 {[%clk 0:01:05.9]} 31. gxf3 {[%clk 0:01:10.8]}
31... Re2 {[%clk 0:01:06.8]} 32. a4 {[%clk 0:01:06.7]} 32... g5 {[%clk 0:01:07]}
33. a5 {[%clk 0:01:07.7]} 33... Nh5 {[%clk 0:01:07.4]} 34. Re4 {[%clk
0:01:04.4]} 34... Rxc2 {[%clk 0:01:07.3]} 35. Ne7+ {[%clk 0:01:05]} 1-0

[Event "*** Titled Tuesday Blitz"]
[Site "Chess.com"]
[Date "2019.05.07"]
[Round "10"]
[White "Gubajdullin"]
[Black "PotapovaM"]
[Result "1-0"]
[WhiteElo "2549"]
[BlackElo "2465"]
[TimeControl "180+2"]
[EndTime "15:22:58 PDT"]
[Termination "Gubajdullin won by resignation"]

1. d4 {[%clk 0:03:01.9]} 1... Nf6 {[%clk 0:03:00.6]} 2. Bf4 {[%clk 0:03:02.6]}
2... g6 {[%clk 0:03:01.2]} 3. e3 {[%clk 0:03:03.8]} 3... Bg7 {[%clk 0:03:01.7]}
4. Nf3 {[%clk 0:03:04.9]} 4... O-O {[%clk 0:03:02.6]} 5. Be2 {[%clk 0:03:06.2]}
5... d6 {[%clk 0:02:55.6]} 6. O-O {[%clk 0:03:07]} 6... b6 {[%clk 0:02:55]} 7.
a4 {[%clk 0:03:06.7]} 7... a5 {[%clk 0:02:55.1]} 8. h3 {[%clk 0:03:07.4]} 8...
Bb7 {[%clk 0:02:56.2]} 9. Nc3 {[%clk 0:03:07.8]} 9... Nbd7 {[%clk 0:02:56.8]}
10. Nb5 {[%clk 0:03:08.3]} 10... Ne4 {[%clk 0:02:45]} 11. Bh2 {[%clk 0:03:05.7]}
11... c6 {[%clk 0:02:20.6]} 12. Na3 {[%clk 0:03:05.7]} 12... d5 {[%clk 0:02:02]}
13. c4 {[%clk 0:02:58.4]} 13... e6 {[%clk 0:02:03.6]} 14. Qb3 {[%clk 0:02:48.5]}
14... Ba6 {[%clk 0:02:03]} 15. Rfe1 {[%clk 0:02:46]} 15... Kh8 {[%clk
0:01:55.8]} 16. Rac1 {[%clk 0:02:46.4]} 16... Bb7 {[%clk 0:01:54.8]} 17. Rc2
{[%clk 0:02:40.9]} 17... Nb8 {[%clk 0:01:51.8]} 18. Ne5 {[%clk 0:02:31.6]} 18...
f6 {[%clk 0:01:46.8]} 19. Nd3 {[%clk 0:02:29.5]} 19... Na6 {[%clk 0:01:41.9]}
20. c5 {[%clk 0:02:19.9]} 20... e5 {[%clk 0:00:53.9]} 21. cxb6 {[%clk 0:02:08]}
21... exd4 {[%clk 0:00:49.3]} 22. exd4 {[%clk 0:02:08.4]} 22... Re8 {[%clk
0:00:35.9]} 23. Bf3 {[%clk 0:02:00.5]} 23... Ng5 {[%clk 0:00:35.3]} 24. Rxe8+
{[%clk 0:01:49.5]} 24... Qxe8 {[%clk 0:00:37.2]} 25. Bd1 {[%clk 0:01:49.6]}
25... Nb4 {[%clk 0:00:24.6]} 26. Re2 {[%clk 0:01:49.8]} 26... Qf8 {[%clk
0:00:22.9]} 27. Nc5 {[%clk 0:01:48.4]} 27... Rb8 {[%clk 0:00:11.5]} 28. Nd7
{[%clk 0:01:46.2]} 28... Qg8 {[%clk 0:00:11.2]} 29. Nxb8 {[%clk 0:01:46.4]}
29... Ne4 {[%clk 0:00:10]} 30. f3 {[%clk 0:01:44]} 30... Ng5 {[%clk 0:00:10.6]}
31. Qe3 {[%clk 0:01:43.6]} 31... f5 {[%clk 0:00:07.5]} 32. Be5 {[%clk
0:01:42.4]} 1-0

[Event "*** Titled Tuesday Blitz"]
[Site "Chess.com"]
[Date "2019.05.07"]
[Round "10"]
[White "FearlessKing64"]
[Black "ChessWeebs"]
[Result "0-1"]
[WhiteElo "2243"]
[BlackElo "2738"]
[TimeControl "180+2"]
[EndTime "15:23:04 PDT"]
[Termination "ChessWeebs won by resignation"]

1. e4 {[%clk 0:03:01.9]} 1... c6 {[%clk 0:02:58.7]} 2. d4 {[%clk 0:03:02.2]}
2... d5 {[%clk 0:03:00.1]} 3. e5 {[%clk 0:03:00.2]} 3... Bf5 {[%clk 0:03:00.9]}
4. h4 {[%clk 0:03:01.4]} 4... h5 {[%clk 0:03:01.3]} 5. Ne2 {[%clk 0:02:50.5]}
5... e6 {[%clk 0:02:58.2]} 6. Ng3 {[%clk 0:02:49.1]} 6... Bg6 {[%clk 0:02:58]}
7. Be2 {[%clk 0:02:49.6]} 7... c5 {[%clk 0:02:56.1]} 8. c3 {[%clk 0:02:47.4]}
8... Nc6 {[%clk 0:02:56.9]} 9. Nxh5 {[%clk 0:02:36.4]} 9... Bxh5 {[%clk
0:02:54]} 10. Bxh5 {[%clk 0:02:38.3]} 10... g6 {[%clk 0:02:55.6]} 11. Bxg6
{[%clk 0:02:18.4]} 11... fxg6 {[%clk 0:02:52.9]} 12. Qg4 {[%clk 0:02:18.1]}
12... Kd7 {[%clk 0:02:44.6]} 13. Qxg6 {[%clk 0:02:12.2]} 13... Rxh4 {[%clk
0:02:44.7]} 14. O-O {[%clk 0:01:47]} 14... Be7 {[%clk 0:02:22.4]} 15. c4 {[%clk
0:01:29.4]} 15... Nxd4 {[%clk 0:02:19.1]} 16. Nc3 {[%clk 0:01:24.4]} 16... Nh6
{[%clk 0:02:15.4]} 17. cxd5 {[%clk 0:01:19.8]} 17... Qg8 {[%clk 0:02:14.6]} 18.
dxe6+ {[%clk 0:01:02.8]} 18... Kc6 {[%clk 0:02:07.7]} 19. Qxg8 {[%clk
0:00:48.2]} 19... Rxg8 {[%clk 0:02:08.4]} 20. g3 {[%clk 0:00:48.3]} 20... Nhf5
{[%clk 0:01:45.9]} 21. Kg2 {[%clk 0:00:45.3]} 21... Rhg4 {[%clk 0:01:43.6]} 22.
Rh1 {[%clk 0:00:26.7]} 22... Nxg3 {[%clk 0:01:37.7]} 23. fxg3 {[%clk 0:00:27.3]}
23... Rxg3+ {[%clk 0:01:39.6]} 24. Kf1 {[%clk 0:00:27.9]} 24... Rf8+ {[%clk
0:01:39.4]} 25. Ke1 {[%clk 0:00:24.7]} 25... Nc2+ {[%clk 0:01:40.7]} 26. Kd1
{[%clk 0:00:25.9]} 26... Nxa1 {[%clk 0:01:41.1]} 27. Bd2 {[%clk 0:00:16.4]}
27... Rg2 {[%clk 0:01:32.8]} 28. Ne4 {[%clk 0:00:15.8]} 28... Kd5 {[%clk
0:01:30.6]} 29. Nc3+ {[%clk 0:00:14.1]} 29... Kxe5 {[%clk 0:01:31.9]} 30. Re1+
{[%clk 0:00:14]} 30... Kd6 {[%clk 0:01:33]} 31. Kc1 {[%clk 0:00:14.5]} 31... Kc6
{[%clk 0:01:32]} 32. b3 {[%clk 0:00:13.9]} 32... Rff2 {[%clk 0:01:31.5]} 33. Ne4
{[%clk 0:00:13.4]} 33... Re2 {[%clk 0:01:32.4]} 0-1

[Event "*** Titled Tuesday Blitz"]
[Site "Chess.com"]
[Date "2019.05.07"]
[Round "10"]
[White "mouseWLZ"]
[Black "Korchmar_Vasiliy"]
[Result "1-0"]
[WhiteElo "2652"]
[BlackElo "2802"]
[TimeControl "180+2"]
[EndTime "15:23:11 PDT"]
[Termination "mouseWLZ won by resignation"]

1. d4 {[%clk 0:03:01.9]} 1... Nf6 {[%clk 0:03:00.4]} 2. Bf4 {[%clk 0:03:03]}
2... d5 {[%clk 0:03:01.1]} 3. e3 {[%clk 0:03:03]} 3... c5 {[%clk 0:03:02.3]} 4.
c3 {[%clk 0:03:02]} 4... Nc6 {[%clk 0:03:02]} 5. Nd2 {[%clk 0:03:02.6]} 5... Bf5
{[%clk 0:03:01.6]} 6. Ngf3 {[%clk 0:03:01.8]} 6... Qb6 {[%clk 0:02:57.6]} 7. Qc1
{[%clk 0:02:46.8]} 7... e6 {[%clk 0:02:55.4]} 8. Be2 {[%clk 0:02:42]} 8... cxd4
{[%clk 0:02:56.2]} 9. exd4 {[%clk 0:02:42.5]} 9... Rc8 {[%clk 0:02:57.7]} 10.
O-O {[%clk 0:02:38.6]} 10... Be7 {[%clk 0:02:59.1]} 11. h3 {[%clk 0:02:38.4]}
11... O-O {[%clk 0:03:00.1]} 12. Nb3 {[%clk 0:02:36.1]} 12... a5 {[%clk
0:02:53.3]} 13. Nbd2 {[%clk 0:02:36.5]} 13... a4 {[%clk 0:02:44.1]} 14. a3
{[%clk 0:02:32.9]} 14... h6 {[%clk 0:02:40.6]} 15. Re1 {[%clk 0:02:33.3]} 15...
Rfd8 {[%clk 0:02:38.1]} 16. g4 {[%clk 0:02:31.8]} 16... Bg6 {[%clk 0:02:37.6]}
17. Bf1 {[%clk 0:02:32.1]} 17... Ne4 {[%clk 0:02:34.1]} 18. Nxe4 {[%clk
0:02:25.9]} 18... dxe4 {[%clk 0:02:22.5]} 19. Ne5 {[%clk 0:02:26]} 19... Nxd4
{[%clk 0:02:23.2]} 20. Qe3 {[%clk 0:02:18.5]} 20... Nf3+ {[%clk 0:01:34]} 21.
Nxf3 {[%clk 0:02:18.2]} 21... Bc5 {[%clk 0:01:24]} 22. Nd4 {[%clk 0:02:18.5]}
22... f6 {[%clk 0:01:14.8]} 23. Bxh6 {[%clk 0:02:19.3]} 23... e5 {[%clk
0:01:13.7]} 24. Bc4+ {[%clk 0:02:14.3]} 24... Kh7 {[%clk 0:01:13.4]} 25. Bxg7
{[%clk 0:02:13.5]} 25... Kxg7 {[%clk 0:01:15.3]} 26. Ne6+ {[%clk 0:02:12.8]}
26... Qxe6 {[%clk 0:01:15.8]} 27. Bxe6 {[%clk 0:02:14.2]} 27... Bxe3 {[%clk
0:01:16.4]} 28. Bxc8 {[%clk 0:02:15.7]} 28... Bc5 {[%clk 0:01:02.2]} 29. Bf5
{[%clk 0:02:16.7]} 29... Bxf5 {[%clk 0:00:59.3]} 30. gxf5 {[%clk 0:02:17.6]}
30... Rd2 {[%clk 0:01:00.9]} 31. Rxe4 {[%clk 0:02:12.1]} 31... Rxf2 {[%clk
0:00:56.1]} 32. Rc4 {[%clk 0:02:08.2]} 32... Be3 {[%clk 0:00:56.8]} 33. Kh1
{[%clk 0:02:04.5]} 33... Rxb2 {[%clk 0:00:39.4]} 34. Rxa4 {[%clk 0:02:05.4]}
34... Kh6 {[%clk 0:00:16]} 35. Rb4 {[%clk 0:02:00.8]} 35... Rc2 {[%clk 0:00:17]}
36. Rxb7 {[%clk 0:01:58.2]} 36... Bd2 {[%clk 0:00:16.9]} 37. Rg1 {[%clk
0:01:54.2]} 1-0

[Event "*** Titled Tuesday Blitz"]
[Site "Chess.com"]
[Date "2019.05.07"]
[Round "10"]
[White "Orest_Vovk"]
[Black "MatthewG-p4p"]
[Result "0-1"]
[WhiteElo "2463"]
[BlackElo "2680"]
[TimeControl "180+2"]
[EndTime "15:23:19 PDT"]
[Termination "MatthewG-p4p won on time"]

1. h4 {[%clk 0:03:01.9]} 1... e5 {[%clk 0:02:49.1]} 2. h5 {[%clk 0:03:02.3]}
2... d5 {[%clk 0:02:44.8]} 3. h6 {[%clk 0:03:02.9]} 3... Nxh6 {[%clk 0:02:45]}
4. d4 {[%clk 0:03:03.6]} 4... Nc6 {[%clk 0:02:34.7]} 5. Bxh6 {[%clk 0:03:00.4]}
5... gxh6 {[%clk 0:02:36.6]} 6. dxe5 {[%clk 0:03:01.5]} 6... Nxe5 {[%clk
0:02:35.1]} 7. Nf3 {[%clk 0:03:02.6]} 7... Bg7 {[%clk 0:02:31.5]} 8. Nxe5 {[%clk
0:03:00.8]} 8... Bxe5 {[%clk 0:02:32.6]} 9. Nc3 {[%clk 0:02:57.6]} 9... d4
{[%clk 0:02:24.1]} 10. Ne4 {[%clk 0:02:56.1]} 10... c5 {[%clk 0:02:10]} 11. Qd2
{[%clk 0:02:44]} 11... Qd5 {[%clk 0:02:07]} 12. Rh4 {[%clk 0:02:22.6]} 12... Bf5
{[%clk 0:02:04.3]} 13. c4 {[%clk 0:02:11.8]} 13... Qc6 {[%clk 0:01:59.2]} 14.
Qd3 {[%clk 0:02:03.4]} 14... Bg6 {[%clk 0:01:56.9]} 15. g3 {[%clk 0:01:33]}
15... f5 {[%clk 0:01:53.2]} 16. Nd2 {[%clk 0:01:31]} 16... f4 {[%clk 0:01:52.4]}
17. Qf3 {[%clk 0:00:55.6]} 17... fxg3 {[%clk 0:01:51.8]} 18. Qxc6+ {[%clk
0:00:45.6]} 18... bxc6 {[%clk 0:01:53.7]} 19. f4 {[%clk 0:00:37.5]} 19... Bc7
{[%clk 0:01:46.7]} 20. Bg2 {[%clk 0:00:27.1]} 20... O-O {[%clk 0:01:47.8]} 21.
Bxc6 {[%clk 0:00:21.7]} 21... Rab8 {[%clk 0:01:48.5]} 22. Bd5+ {[%clk
0:00:22.6]} 22... Kg7 {[%clk 0:01:49.8]} 23. b3 {[%clk 0:00:14.3]} 23... Bxf4
{[%clk 0:01:48.1]} 24. Ne4 {[%clk 0:00:12.8]} 24... Rbe8 {[%clk 0:01:41.9]} 25.
Nxc5 {[%clk 0:00:09.9]} 25... d3 {[%clk 0:01:40.7]} 26. Ne6+ {[%clk 0:00:07.7]}
26... Rxe6 {[%clk 0:01:36.4]} 27. Bxe6 {[%clk 0:00:09.6]} 27... d2+ {[%clk
0:01:26.2]} 28. Kd1 {[%clk 0:00:10.5]} 28... g2 {[%clk 0:01:18.6]} 29. Rg4
{[%clk 0:00:07.3]} 29... Be3 {[%clk 0:01:19.5]} 0-1

[Event "*** Titled Tuesday Blitz"]
[Site "Chess.com"]
[Date "2019.05.07"]
[Round "10"]
[White "Ambitiousresolutions"]
[Black "albi1999"]
[Result "0-1"]
[WhiteElo "2681"]
[BlackElo "2557"]
[TimeControl "180+2"]
[EndTime "15:23:20 PDT"]
[Termination "albi1999 won by resignation"]

1. e4 {[%clk 0:03:01.9]} 1... e5 {[%clk 0:03:01.1]} 2. Nf3 {[%clk 0:03:02]} 2...
Nc6 {[%clk 0:03:02.1]} 3. Bb5 {[%clk 0:02:56.6]} 3... a6 {[%clk 0:03:02]} 4. Ba4
{[%clk 0:02:57.8]} 4... d6 {[%clk 0:02:59.4]} 5. O-O {[%clk 0:02:57.8]} 5... Bd7
{[%clk 0:03:00.9]} 6. c3 {[%clk 0:02:57.8]} 6... g6 {[%clk 0:03:02.2]} 7. d4
{[%clk 0:02:58.3]} 7... Bg7 {[%clk 0:03:03.7]} 8. d5 {[%clk 0:02:59.1]} 8...
Nce7 {[%clk 0:03:04.6]} 9. Bxd7+ {[%clk 0:03:00.2]} 9... Qxd7 {[%clk 0:03:06.5]}
10. c4 {[%clk 0:03:01.5]} 10... h6 {[%clk 0:03:07.5]} 11. Nc3 {[%clk 0:03:02.7]}
11... f5 {[%clk 0:03:08.4]} 12. Ne1 {[%clk 0:02:58.7]} 12... Nf6 {[%clk
0:03:09.6]} 13. Qe2 {[%clk 0:02:57.1]} 13... O-O {[%clk 0:03:10]} 14. Nd3 {[%clk
0:02:57.5]} 14... c6 {[%clk 0:03:06]} 15. f3 {[%clk 0:02:57.5]} 15... cxd5
{[%clk 0:03:06.3]} 16. cxd5 {[%clk 0:02:54.8]} 16... Rac8 {[%clk 0:03:07]} 17.
Bd2 {[%clk 0:02:53]} 17... Nh5 {[%clk 0:03:02.1]} 18. Rac1 {[%clk 0:02:50.2]}
18... b5 {[%clk 0:03:01.9]} 19. Nb4 {[%clk 0:02:40]} 19... Rc4 {[%clk
0:03:01.1]} 20. a3 {[%clk 0:02:03.2]} 20... fxe4 {[%clk 0:02:54.4]} 21. fxe4
{[%clk 0:02:01.7]} 21... Nf4 {[%clk 0:02:50.3]} 22. Qf3 {[%clk 0:01:44.7]} 22...
g5 {[%clk 0:02:45.2]} 23. Nd3 {[%clk 0:01:40.1]} 23... Neg6 {[%clk 0:02:43.1]}
24. Nxf4 {[%clk 0:01:33.1]} 24... exf4 {[%clk 0:02:42.4]} 25. Qe2 {[%clk
0:01:29.2]} 25... Ne5 {[%clk 0:02:28.8]} 26. Na2 {[%clk 0:01:29.6]} 26... Rxc1
{[%clk 0:02:22.7]} 27. Bxc1 {[%clk 0:01:31.5]} 27... Qa7+ {[%clk 0:02:18.7]} 28.
Kh1 {[%clk 0:01:29.4]} 28... Qd4 {[%clk 0:02:17.1]} 29. Nb4 {[%clk 0:01:25.4]}
29... a5 {[%clk 0:02:12.8]} 30. Rd1 {[%clk 0:01:14.4]} 30... Qc4 {[%clk
0:02:09.1]} 31. Qxc4 {[%clk 0:00:55.9]} 31... bxc4 {[%clk 0:02:11]} 32. Nc6
{[%clk 0:00:57.7]} 32... Nd3 {[%clk 0:02:11.4]} 33. Rf1 {[%clk 0:00:52]} 33...
Re8 {[%clk 0:02:08.6]} 34. e5 {[%clk 0:00:46.5]} 34... Bxe5 {[%clk 0:02:05.9]}
35. Nxa5 {[%clk 0:00:47.3]} 35... Nxc1 {[%clk 0:01:50.1]} 36. Rxc1 {[%clk
0:00:47]} 36... Bxb2 {[%clk 0:01:51.6]} 37. Rf1 {[%clk 0:00:38.8]} 37... Re4
{[%clk 0:01:43.9]} 38. h4 {[%clk 0:00:33.3]} 38... g4 {[%clk 0:01:42.4]} 39. a4
{[%clk 0:00:32.2]} 39... c3 {[%clk 0:01:36]} 40. Nb7 {[%clk 0:00:31.1]} 40...
Rxa4 {[%clk 0:01:35.1]} 41. Nxd6 {[%clk 0:00:30.7]} 41... c2 {[%clk 0:01:36.5]}
0-1